[Event "World Junior U20 Girls 2018"]
[Site "Gebze"]
[Date "2018.09.12"]
[Round "8"]
[White "Song, Yuxin"]
[Black "Unuk, Laura"]
[Result "0-1"]
[ECO "E15"]
[WhiteElo "2156"]
[BlackElo "2299"]
[Annotator "NA"]
[PlyCount "76"]
[EventDate "2018.09.05"]
[EventType "swiss"]
[EventCountry "TUR"]
[SourceTitle "playchess.com"]
[Source "ChessBase"]
[SourceQuality "1"]
[TimeControl "40/5400+30:1800+30"]

1. d4 {[%emt 0:00:30]} Nf6 {[%emt 0:01:30]} 2. c4 {[%emt 0:00:30]} e6 {[%emt 0:00:30]} 3. Nf3 {[%emt 0:00:00]} b6 {[%emt 0:01:30]} 4. g3 {[%emt 0:00:00]} Ba6 {[%emt 0:00:30]} 5. Nbd2 {[%emt 0:06:30]} d5 {[%emt 0:06:30]} 6. Qc2 {[%emt 0:04:30]} Be7 {[%emt 0:02:30]} 7. Bg2 {[%emt 0:00:00]} O-O {[%emt 0:00:30]} 8. O-O {[%emt 0:02:00]} c5 {[%emt 0:09:30]} 9. dxc5 {[%emt 0:10:30]} bxc5 {[%emt 0:01:30]} 10. Ne5 {[%emt 0:02:30]} Qc7 {[%emt 0:08:30]} 11. f4 {[%emt 0:11:30]} Nbd7 {[%emt 0:01:30]} 12. Ndf3 {[%emt 0:08:30]} Nb6 {[%emt 0:03:30]} 13. b3 {[%emt 0:03:30]} Rad8 {[%emt 0:00:30]} 14. Bd2 {[%emt 0:02:30]} Ne4 {[%emt 0:06:30]} 15. Ba5 {[%emt 0:00:30]} f6 {[%emt 0:00:30]} 16. Nd3 {[%emt 0:01:30]} dxc4 {[%emt 0:04:30]} 17. bxc4 {[%emt 0:00:30]} Nd6 {[%emt 0:00:30]} 18. Nb2 {[%emt 0:01:30]} Bb7 {[%emt 0:01:30]} 19. Bh3 {[%emt 0:02:30]} Nf5 {[%emt 0:12:30]} 20. Bxf5 {[%emt 0:02:30]} exf5 {[%emt 0:00:30]} 21. Qxf5 {[%emt 0:00:30]} Qc6 {[%emt 0:00:30]} 22. Rfe1 {[%emt 0:05:30]} Rfe8 {[%emt 0:05:30]} 23. Rad1 {[%emt 0:00:30]} g6 {[%emt 0:02:30]} 24. Qc2 {[%emt 0:01:30]} Qe6 {[%emt 0:01:30]} 25. Bd2 {[%emt 0:10:30]} Bf8 {[%emt 0:05:30]} 26. Rc1 {[%emt 0:02:30]} Qc6 {[%emt 0:02:30]} 27. Kf1 {[%emt 0:02:57]} Rd4 {[%emt 0:06:18]} 28. Qc3 {[%emt 0:04:31]} Nc8 {[%emt 0:00:20]} 29. Be3 {[%emt 0:00:49]} Rde4 {[%emt 0:04:16]} 30. Bf2 {[%emt 0:00:27]} Qe6 {[%emt 0:00:28]} 31. Qd3 {[%emt 0:01:26]} Qh3+ {[%emt 0:02:34]} 32. Kg1 {[%emt 0:00:01]} Nd6 {[%emt 0:00:44]} 33. Bxc5 {[%emt 0:03:50]} Nf5 {[%emt 0:00:45]} 34. Bf2 {[%emt 0:02:52]} Ne3 {[%emt 0:01:39]} 35. Nh4 {[%emt 0:01:29]} Ng4 {[%emt 0:03:03]} 36. Nf3 {[%emt 0:03:53]} Nxf2 {[%emt 0:01:14]} 37. Kxf2 {[%emt 0:00:30]} Bc5+ {[%emt 0:00:30]} 38. e3 {[%emt 0:00:30]} Rxf4 {[%emt 0:00:11]} 0-1

[Event "World Junior U20 Girls 2018"]
[Site "Gebze"]
[Date "2018.09.12"]
[Round "8"]
[White "Du, Yuxin"]
[Black "Can, Isil"]
[Result "1/2-1/2"]
[ECO "C54"]
[WhiteElo "2146"]
[BlackElo "1798"]
[Annotator "NA"]
[PlyCount "136"]
[EventDate "2018.09.05"]
[EventType "swiss"]
[EventCountry "TUR"]
[SourceTitle "playchess.com"]
[Source "ChessBase"]
[SourceQuality "1"]
[TimeControl "40/5400+30:1800+30"]

1. e4 {[%emt 0:00:30]} e5 {[%emt 0:00:30]} 2. Nf3 {[%emt 0:00:30]} Nc6 {[%emt 0:00:00]} 3. Bc4 {[%emt 0:00:00]} Bc5 {[%emt 0:00:00]} 4. c3 {[%emt 0:00:00]} Nf6 {[%emt 0:00:30]} 5. d4 {[%emt 0:00:30]} exd4 {[%emt 0:00:00]} 6. e5 {[%emt 0:00:30]} d5 {[%emt 0:00:00]} 7. Bb5 {[%emt 0:00:00]} Ne4 {[%emt 0:00:30]} 8. cxd4 {[%emt 0:00:00]} Bb6 {[%emt 0:00:00]} 9. Nc3 {[%emt 0:01:30]} Bg4 {[%emt 0:00:00]} 10. Be3 {[%emt 0:00:30]} O-O {[%emt 0:00:30]} 11. h3 {[%emt 0:05:30]} Bh5 {[%emt 0:06:30]} 12. Qc2 {[%emt 0:19:30]} Bg6 {[%emt 0:10:30]} 13. Qb3 {[%emt 0:00:30]} Nxc3 {[%emt 0:11:30]} 14. Bxc6 {[%emt 0:03:30]} Ba5 {[%emt 0:16:30]} 15. Qa3 {[%emt 0:11:30]} bxc6 {[%emt 0:03:30]} 16. Qxa5 {[%emt 0:00:30]} Ne4 {[%emt 0:01:30]} 17. O-O {[%emt 0:03:30]} Bf5 {[%emt 0:06:30]} 18. Rac1 {[%emt 0:09:30]} Bd7 {[%emt 0:00:30]} 19. Ne1 {[%emt 0:08:30]} Qb8 {[%emt 0:02:30]} 20. Nd3 {[%emt 0:03:30]} Qb6 {[%emt 0:00:30]} 21. Qe1 {[%emt 0:10:46]} Qa6 {[%emt 0:18:30]} 22. Nb4 {[%emt 0:11:31]} Qb7 {[%emt 0:03:06]} 23. Kh2 {[%emt 0:05:47]} f6 {[%emt 0:05:56]} 24. exf6 {[%emt 0:02:36]} Rxf6 {[%emt 0:01:55]} 25. Nd3 {[%emt 0:00:29]} Raf8 {[%emt 0:00:40]} 26. Qe2 {[%emt 0:00:26]} Qa6 {[%emt 0:01:26]} 27. f3 {[%emt 0:00:49]} Nd6 {[%emt 0:00:25]} 28. b3 {[%emt 0:00:47]} Nf5 {[%emt 0:01:03]} 29. Bf2 {[%emt 0:00:27]} Qc8 {[%emt 0:06:31]} 30. Ne5 {[%emt 0:00:41]} Be8 {[%emt 0:00:18]} 31. Qd2 {[%emt 0:00:29]} Re6 {[%emt 0:01:24]} 32. Rfe1 {[%emt 0:00:23]} Ne7 {[%emt 0:00:32]} 33. Nd3 {[%emt 0:00:35]} Ng6 {[%emt 0:01:03]} 34. Rxe6 {[%emt 0:00:17]} Qxe6 {[%emt 0:00:02]} 35. Bg3 {[%emt 0:00:30]} Qf6 {[%emt 0:00:56]} 36. Nc5 {[%emt 0:00:46]} Nf4 {[%emt 0:00:44]} 37. Bxf4 {[%emt 0:00:44]} Qxf4+ {[%emt 0:00:01]} 38. Qxf4 {[%emt 0:00:24]} Rxf4 {[%emt 0:00:01]} 39. Ne6 {[%emt 0:00:22]} Rf7 {[%emt 0:00:01]} 40. Kg3 {[%emt 0:00:00]} Re7 {[%emt 0:00:00]} 41. Nd8 {[%emt 0:04:41]} Re2 {[%emt 0:01:56]} 42. Nxc6 {[%emt 0:01:30]} Bxc6 {[%emt 0:06:30]} 43. Rxc6 {[%emt 0:00:30]} Rxa2 {[%emt 0:00:00]} 44. Rxc7 {[%emt 0:00:30]} Rd2 {[%emt 0:00:00]} 45. Rxa7 {[%emt 0:00:30]} Rxd4 {[%emt 0:00:00]} 46. Rb7 {[%emt 0:11:52]} Rd2 {[%emt 0:00:00]} 47. b4 {[%emt 0:00:44]} d4 {[%emt 0:00:30]} 48. Rd7 {[%emt 0:00:19]} d3 {[%emt 0:00:30]} 49. b5 {[%emt 0:00:09]} Rb2 {[%emt 0:00:30]} 50. Rxd3 {[%emt 0:00:30]} Rxb5 {[%emt 0:00:00]} 51. Rd7 {[%emt 0:00:00]} h5 {[%emt 0:06:00]} 52. Kh4 {[%emt 0:01:12]} Rf5 {[%emt 0:01:30]} 53. Rd4 {[%emt 0:01:14]} Kf7 {[%emt 0:02:30]} 54. f4 {[%emt 0:00:20]} g6 {[%emt 0:00:30]} 55. Re4 {[%emt 0:04:26]} Kg7 {[%emt 0:01:15]} 56. g4 {[%emt 0:02:11]} hxg4 {[%emt 0:00:30]} 57. hxg4 {[%emt 0:00:30]} Rf6 {[%emt 0:04:29]} 58. Kg5 {[%emt 0:00:11]} Rd6 {[%emt 0:00:01]} 59. Re7+ {[%emt 0:00:00]} Kg8 {[%emt 0:00:35]} 60. Ra7 {[%emt 0:00:48]} Rb6 {[%emt 0:00:45]} 61. Kh6 {[%emt 0:01:10]} Rf6 {[%emt 0:00:36]} 62. g5 {[%emt 0:03:36]} Rxf4 {[%emt 0:00:41]} 63. Kxg6 {[%emt 0:00:07]} Rf8 {[%emt 0:00:14]} 64. Kh6 {[%emt 0:02:49]} Kh8 {[%emt 0:05:11]} 65. Ra6 {[%emt 0:02:34]} Kg8 {[%emt 0:00:33]} 66. g6 {[%emt 0:00:32]} Re8 {[%emt 0:01:23]} 67. Rb6 {[%emt 0:00:42]} Rf8 {[%emt 0:01:02]} 68. Rb7 {[%emt 0:00:38]} Re8 {[%emt 0:00:33]} 1/2-1/2

[Event "World Junior U20 Girls 2018"]
[Site "Gebze"]
[Date "2018.09.12"]
[Round "8"]
[White "Wafa, Shahenda"]
[Black "Haussernot, Cecile"]
[Result "1-0"]
[ECO "C11"]
[WhiteElo "2129"]
[BlackElo "2237"]
[Annotator "NA"]
[PlyCount "113"]
[EventDate "2018.09.05"]
[EventType "swiss"]
[EventCountry "TUR"]
[SourceTitle "playchess.com"]
[Source "ChessBase"]
[SourceQuality "1"]
[TimeControl "40/5400+30:1800+30"]

1. e4 {[%emt 0:00:30]} e6 {[%emt 0:05:30]} 2. d4 {[%emt 0:00:30]} d5 {[%emt 0:00:30]} 3. Nc3 {[%emt 0:00:00]} Nf6 {[%emt 0:00:30]} 4. e5 {[%emt 0:00:00]} Nfd7 {[%emt 0:00:00]} 5. f4 {[%emt 0:00:30]} c5 {[%emt 0:00:00]} 6. Nf3 {[%emt 0:00:30]} Nc6 {[%emt 0:00:00]} 7. Be3 {[%emt 0:00:30]} Be7 {[%emt 0:00:00]} 8. Qd2 {[%emt 0:00:30]} O-O {[%emt 0:00:00]} 9. dxc5 {[%emt 0:00:30]} Qa5 {[%emt 0:01:00]} 10. O-O-O {[%emt 0:01:30]} b6 {[%emt 0:00:30]} 11. Bb5 {[%emt 0:05:30]} Nb4 {[%emt 0:16:30]} 12. a3 {[%emt 0:11:30]} Na2+ {[%emt 0:10:30]} 13. Nxa2 {[%emt 0:00:00]} Qxb5 {[%emt 0:00:00]} 14. Nd4 {[%emt 0:05:00]} Qc4 {[%emt 0:02:00]} 15. Nb4 {[%emt 0:08:30]} Bxc5 {[%emt 0:00:30]} 16. b3 {[%emt 0:01:30]} Bxb4 {[%emt 0:00:00]} 17. Qxb4 {[%emt 0:00:30]} Qc5 {[%emt 0:04:00]} 18. Kb2 {[%emt 0:02:30]} a5 {[%emt 0:03:30]} 19. Qa4 {[%emt 0:04:30]} Qe7 {[%emt 0:02:30]} 20. Nc6 {[%emt 0:03:30]} Qe8 {[%emt 0:00:30]} 21. f5 {[%emt 0:07:30]} b5 {[%emt 0:16:30]} 22. Qh4 {[%emt 0:00:30]} f6 {[%emt 0:01:30]} 23. fxe6 {[%emt 0:06:30]} Qxe6 {[%emt 0:03:30]} 24. Nd4 {[%emt 0:00:30]} Qxe5 {[%emt 0:00:30]} 25. Bf4 {[%emt 0:00:30]} Qe4 {[%emt 0:00:30]} 26. Rhe1 {[%emt 0:01:30]} Qg6 {[%emt 0:00:30]} 27. Nxb5 {[%emt 0:01:30]} Bb7 {[%emt 0:01:30]} 28. Qg3 {[%emt 0:01:30]} Nc5 {[%emt 0:13:03]} 29. Qxg6 {[%emt 0:02:30]} hxg6 {[%emt 0:00:05]} 30. Bd6 {[%emt 0:00:30]} Rfc8 {[%emt 0:01:05]} 31. Nc7 {[%emt 0:00:30]} Ne4 {[%emt 0:00:05]} 32. Nxa8 {[%emt 0:01:30]} Bxa8 {[%emt 0:00:05]} 33. Bf4 {[%emt 0:01:30]} g5 {[%emt 0:00:43]} 34. Be3 {[%emt 0:00:30]} f5 {[%emt 0:00:21]} 35. g3 {[%emt 0:06:30]} Bb7 {[%emt 0:01:44]} 36. a4 {[%emt 0:01:30]} Kf7 {[%emt 0:00:22]} 37. c4 {[%emt 0:01:30]} Rh8 {[%emt 0:02:46]} 38. Re2 {[%emt 0:01:30]} Rh3 {[%emt 0:03:18]} 39. cxd5 {[%emt 0:02:30]} f4 {[%emt 0:00:45]} 40. Bxf4 {[%emt 0:01:49]} gxf4 {[%emt 0:00:30]} 41. Rxe4 {[%emt 0:00:11]} Rxh2+ {[%emt 0:01:08]} 42. Kc3 {[%emt 0:00:30]} fxg3 {[%emt 0:00:00]} 43. Rf4+ {[%emt 0:02:30]} Ke8 {[%emt 0:02:00]} 44. Rg4 {[%emt 0:05:30]} g2 {[%emt 0:00:30]} 45. Rd2 {[%emt 0:00:30]} Rh5 {[%emt 0:01:30]} 46. Kc4 {[%emt 0:01:30]} Ba6+ {[%emt 0:01:30]} 47. Kc5 {[%emt 0:03:30]} Bf1 {[%emt 0:00:00]} 48. Rxg7 {[%emt 0:00:30]} Rh1 {[%emt 0:00:00]} 49. Rgxg2 {[%emt 0:01:30]} Bxg2 {[%emt 0:00:30]} 50. Rxg2 {[%emt 0:00:00]} Ke7 {[%emt 0:00:30]} 51. Rg7+ {[%emt 0:00:00]} Kf6 {[%emt 0:00:00]} 52. Ra7 {[%emt 0:00:30]} Ke5 {[%emt 0:00:00]} 53. Rxa5 {[%emt 0:00:30]} Rh8 {[%emt 0:00:00]} 54. Ra6 {[%emt 0:00:30]} Rh3 {[%emt 0:00:00]} 55. Re6+ {[%emt 0:00:30]} Kf5 {[%emt 0:00:00]} 56. Rb6 {[%emt 0:00:30]} Ke5 {[%emt 0:00:00]} 57. Rb5 {[%emt 0:02:30]} 1-0

[Event "World Junior U20 Girls 2018"]
[Site "Gebze"]
[Date "2018.09.12"]
[Round "8"]
[White "Serikbay, Assel"]
[Black "Alinasab, Mobina"]
[Result "1/2-1/2"]
[ECO "A62"]
[WhiteElo "2125"]
[BlackElo "2261"]
[Annotator "NA"]
[PlyCount "122"]
[EventDate "2018.09.05"]
[EventType "swiss"]
[EventCountry "TUR"]
[SourceTitle "playchess.com"]
[Source "ChessBase"]
[SourceQuality "1"]
[TimeControl "40/5400+30:1800+30"]

1. d4 {[%emt 0:00:30]} e6 {[%emt 0:00:30]} 2. c4 {[%emt 0:00:30]} Nf6 {[%emt 0:00:00]} 3. g3 {[%emt 0:00:00]} c5 {[%emt 0:00:00]} 4. d5 {[%emt 0:00:00]} exd5 {[%emt 0:00:30]} 5. cxd5 {[%emt 0:00:30]} g6 {[%emt 0:00:30]} 6. Nc3 {[%emt 0:00:30]} d6 {[%emt 0:00:30]} 7. Bg2 {[%emt 0:00:30]} Bg7 {[%emt 0:00:00]} 8. Nf3 {[%emt 0:01:30]} O-O {[%emt 0:00:00]} 9. O-O {[%emt 0:00:30]} a6 {[%emt 0:00:30]} 10. a4 {[%emt 0:00:00]} Re8 {[%emt 0:00:30]} 11. Bf4 {[%emt 0:05:00]} h6 {[%emt 0:00:00]} 12. h4 {[%emt 0:05:30]} Nh5 {[%emt 0:15:00]} 13. Bc1 {[%emt 0:09:30]} f5 {[%emt 0:06:30]} 14. Qc2 {[%emt 0:12:30]} Nd7 {[%emt 0:03:30]} 15. e3 {[%emt 0:28:30]} Ndf6 {[%emt 0:02:30]} 16. Nd2 {[%emt 0:02:30]} Ng4 {[%emt 0:02:30]} 17. Nc4 {[%emt 0:04:30]} Ne5 {[%emt 0:25:30]} 18. b3 {[%emt 0:03:30]} g5 {[%emt 0:04:30]} 19. hxg5 {[%emt 0:00:30]} hxg5 {[%emt 0:00:00]} 20. Bb2 {[%emt 0:04:21]} Kf7 {[%emt 0:09:00]} 21. Ne2 {[%emt 0:05:34]} g4 {[%emt 0:09:04]} 22. Nf4 {[%emt 0:04:07]} Nxc4 {[%emt 0:12:20]} 23. bxc4 {[%emt 0:00:34]} Nf6 {[%emt 0:00:04]} 24. Ne6 {[%emt 0:01:10]} Bxe6 {[%emt 0:04:24]} 25. dxe6+ {[%emt 0:00:04]} Kxe6 {[%emt 0:02:17]} 26. Bd5+ {[%emt 0:02:39]} Ke7 {[%emt 0:00:57]} 27. Qxf5 {[%emt 0:00:25]} Kf8 {[%emt 0:00:01]} 28. Qg6 {[%emt 0:02:38]} Qe7 {[%emt 0:00:24]} 29. Bxf6 {[%emt 0:01:21]} Qxf6 {[%emt 0:00:30]} 30. Qxg4 {[%emt 0:00:00]} Rab8 {[%emt 0:00:51]} 31. e4 {[%emt 0:01:27]} Ke7 {[%emt 0:01:04]} 32. Ra3 {[%emt 0:02:08]} Rf8 {[%emt 0:00:49]} 33. e5 {[%emt 0:02:02]} dxe5 {[%emt 0:00:12]} 34. Kg2 {[%emt 0:00:27]} Kd6 {[%emt 0:00:42]} 35. Rf3 {[%emt 0:00:39]} Qe7 {[%emt 0:00:09]} 36. Rd1 {[%emt 0:01:33]} Kc7 {[%emt 0:00:16]} 37. Rxf8 {[%emt 0:00:10]} Bxf8 {[%emt 0:00:40]} 38. Qe4 {[%emt 0:00:30]} Qf6 {[%emt 0:00:53]} 39. Rd3 {[%emt 0:00:29]} Be7 {[%emt 0:01:19]} 40. Rf3 {[%emt 0:00:00]} Qd6 {[%emt 0:00:00]} 41. Rf5 {[%emt 0:03:42]} Bf6 {[%emt 0:01:34]} 42. g4 {[%emt 0:03:30]} Rf8 {[%emt 0:02:30]} 43. Bxb7 {[%emt 0:03:30]} a5 {[%emt 0:00:30]} 44. Rf3 {[%emt 0:02:30]} Bh4 {[%emt 0:05:30]} 45. Bd5 {[%emt 0:05:29]} Rxf3 {[%emt 0:01:30]} 46. Qxf3 {[%emt 0:00:08]} Qd7 {[%emt 0:03:44]} 47. Qe4 {[%emt 0:02:36]} Qg7 {[%emt 0:00:40]} 48. Be6 {[%emt 0:03:03]} Qf6 {[%emt 0:02:47]} 49. Qh7+ {[%emt 0:01:34]} Qe7 {[%emt 0:01:15]} 50. Qxe7+ {[%emt 0:01:55]} Bxe7 {[%emt 0:00:30]} 51. Kf3 {[%emt 0:00:30]} Kd6 {[%emt 0:00:00]} 52. Bg8 {[%emt 0:00:31]} Bh4 {[%emt 0:00:11]} 53. Ke3 {[%emt 0:00:09]} Ke7 {[%emt 0:00:14]} 54. f3 {[%emt 0:00:18]} Kf6 {[%emt 0:00:00]} 55. Ke4 {[%emt 0:00:21]} Be1 {[%emt 0:00:46]} 56. Kd5 {[%emt 0:03:22]} Bb4 {[%emt 0:00:30]} 57. Bh7 {[%emt 0:00:00]} Ba3 {[%emt 0:00:00]} 58. Bc2 {[%emt 0:01:37]} Bb4 {[%emt 0:00:00]} 59. g5+ {[%emt 0:00:50]} Kxg5 {[%emt 0:00:26]} 60. Kxe5 {[%emt 0:00:30]} Bc3+ {[%emt 0:00:00]} 61. Ke4 {[%emt 0:00:00]} Kf6 {[%emt 0:00:00]} 1/2-1/2

[Event "World Junior U20 Girls 2018"]
[Site "Gebze"]
[Date "2018.09.12"]
[Round "8"]
[White "Ozbay, Ece"]
[Black "Ghukasyan, Siranush"]
[Result "1/2-1/2"]
[ECO "C96"]
[WhiteElo "2114"]
[BlackElo "2205"]
[Annotator "NA"]
[PlyCount "60"]
[EventDate "2018.09.05"]
[EventType "swiss"]
[EventCountry "TUR"]
[SourceTitle "playchess.com"]
[Source "ChessBase"]
[SourceQuality "1"]
[TimeControl "40/5400+30:1800+30"]

1. e4 {[%emt 0:00:30]} e5 {[%emt 0:01:30]} 2. Nf3 {[%emt 0:00:30]} Nc6 {[%emt 0:00:30]} 3. Bb5 {[%emt 0:00:30]} a6 {[%emt 0:00:30]} 4. Ba4 {[%emt 0:00:30]} Nf6 {[%emt 0:00:00]} 5. O-O {[%emt 0:00:00]} Be7 {[%emt 0:00:00]} 6. Re1 {[%emt 0:00:00]} b5 {[%emt 0:00:30]} 7. Bb3 {[%emt 0:00:00]} d6 {[%emt 0:00:00]} 8. c3 {[%emt 0:00:00]} O-O {[%emt 0:00:00]} 9. h3 {[%emt 0:00:00]} Na5 {[%emt 0:00:00]} 10. Bc2 {[%emt 0:00:00]} c5 {[%emt 0:00:00]} 11. d4 {[%emt 0:00:30]} Nd7 {[%emt 0:00:30]} 12. d5 {[%emt 0:02:30]} Nb6 {[%emt 0:05:30]} 13. g4 {[%emt 0:00:30]} h5 {[%emt 0:03:30]} 14. Nh2 {[%emt 0:02:30]} Bg5 {[%emt 0:08:30]} 15. Nd2 {[%emt 0:05:30]} hxg4 {[%emt 0:09:30]} 16. hxg4 {[%emt 0:00:30]} g6 {[%emt 0:00:00]} 17. Ndf3 {[%emt 0:05:30]} Bxc1 {[%emt 0:00:00]} 18. Qxc1 {[%emt 0:00:30]} Kg7 {[%emt 0:00:00]} 19. Kg2 {[%emt 0:02:30]} Bd7 {[%emt 0:01:00]} 20. Qg5 {[%emt 0:15:30]} f6 {[%emt 0:02:30]} 21. Qh4 {[%emt 0:01:30]} Rh8 {[%emt 0:02:30]} 22. Qg3 {[%emt 0:00:30]} b4 {[%emt 0:06:30]} 23. Nd2 {[%emt 0:04:30]} Nac4 {[%emt 0:14:30]} 24. Nxc4 {[%emt 0:06:30]} Nxc4 {[%emt 0:00:00]} 25. Rac1 {[%emt 0:04:30]} a5 {[%emt 0:03:00]} 26. b3 {[%emt 0:03:30]} Nb6 {[%emt 0:01:30]} 27. c4 {[%emt 0:00:30]} a4 {[%emt 0:00:30]} 28. Nf1 {[%emt 0:02:30]} Qe7 {[%emt 0:03:30]} 29. Ne3 {[%emt 0:01:30]} Rh7 {[%emt 0:07:30]} 30. Rh1 {[%emt 0:00:30]} Rxh1 {[%emt 0:07:30]} 1/2-1/2

[Event "World Junior U20 Girls 2018"]
[Site "Gebze"]
[Date "2018.09.12"]
[Round "8"]
[White "Dwilewicz, Katarzyna"]
[Black "Nass, Sara"]
[Result "1-0"]
[ECO "B12"]
[WhiteElo "2081"]
[BlackElo "1888"]
[Annotator "NA"]
[PlyCount "133"]
[EventDate "2018.09.05"]
[EventType "swiss"]
[EventCountry "TUR"]
[SourceTitle "playchess.com"]
[Source "ChessBase"]
[SourceQuality "1"]
[TimeControl "40/5400+30:1800+30"]

1. e4 {[%emt 0:00:30]} c6 {[%emt 0:00:30]} 2. d4 {[%emt 0:00:00]} d5 {[%emt 0:00:30]} 3. e5 {[%emt 0:00:00]} Bf5 {[%emt 0:00:00]} 4. h4 {[%emt 0:00:30]} h5 {[%emt 0:00:00]} 5. Bd3 {[%emt 0:00:00]} Bxd3 {[%emt 0:02:30]} 6. Qxd3 {[%emt 0:00:00]} e6 {[%emt 0:00:30]} 7. Bg5 {[%emt 0:00:00]} Be7 {[%emt 0:02:30]} 8. Nf3 {[%emt 0:00:00]} Nd7 {[%emt 0:01:30]} 9. Nbd2 {[%emt 0:02:30]} Nh6 {[%emt 0:02:30]} 10. c4 {[%emt 0:05:30]} Nf5 {[%emt 0:03:30]} 11. cxd5 {[%emt 0:19:30]} cxd5 {[%emt 0:00:00]} 12. g3 {[%emt 0:00:00]} f6 {[%emt 0:12:00]} 13. exf6 {[%emt 0:02:00]} gxf6 {[%emt 0:00:30]} 14. Bf4 {[%emt 0:00:30]} Bd6 {[%emt 0:09:30]} 15. Bxd6 {[%emt 0:03:30]} Nxd6 {[%emt 0:00:30]} 16. Qg6+ {[%emt 0:02:30]} Ke7 {[%emt 0:00:30]} 17. O-O {[%emt 0:03:30]} Qg8 {[%emt 0:03:30]} 18. Qd3 {[%emt 0:02:30]} Nf5 {[%emt 0:04:30]} 19. Kh2 {[%emt 0:08:30]} Qg4 {[%emt 0:02:30]} 20. Rfe1 {[%emt 0:04:30]} Rhg8 {[%emt 0:02:30]} 21. Rac1 {[%emt 0:10:30]} Nd6 {[%emt 0:13:30]} 22. Qa3 {[%emt 0:05:30]} Rgc8 {[%emt 0:05:30]} 23. Kg2 {[%emt 0:02:30]} Rxc1 {[%emt 0:05:30]} 24. Rxc1 {[%emt 0:00:30]} e5 {[%emt 0:03:30]} 25. dxe5 {[%emt 0:01:30]} fxe5 {[%emt 0:00:30]} 26. Rc7 {[%emt 0:01:30]} Qe6 {[%emt 0:04:30]} 27. Rxb7 {[%emt 0:03:30]} a5 {[%emt 0:00:41]} 28. Ng5 {[%emt 0:03:56]} Qf5 {[%emt 0:00:45]} 29. Rc7 {[%emt 0:03:05]} Rf8 {[%emt 0:01:55]} 30. Qf3 {[%emt 0:00:49]} e4 {[%emt 0:02:23]} 31. Qxf5 {[%emt 0:01:40]} Nxf5 {[%emt 0:00:18]} 32. Nf1 {[%emt 0:07:15]} Rb8 {[%emt 0:08:19]} 33. Rc2 {[%emt 0:02:47]} Kd6 {[%emt 0:02:32]} 34. b3 {[%emt 0:01:55]} Ke5 {[%emt 0:01:40]} 35. Re2 {[%emt 0:02:12]} Nc5 {[%emt 0:01:02]} 36. Nd2 {[%emt 0:01:44]} a4 {[%emt 0:01:50]} 37. bxa4 {[%emt 0:00:22]} Nxa4 {[%emt 0:00:03]} 38. Ndxe4 {[%emt 0:00:57]} Rb2 {[%emt 0:02:26]} 39. Rxb2 {[%emt 0:01:03]} Nxb2 {[%emt 0:00:30]} 40. Nd2 {[%emt 0:00:00]} d4 {[%emt 0:00:00]} 41. Nh3 {[%emt 0:04:15]} d3 {[%emt 0:01:06]} 42. Nf4 {[%emt 0:00:30]} Ng7 {[%emt 0:02:30]} 43. a4 {[%emt 0:12:33]} Nxa4 {[%emt 0:02:30]} 44. Nxd3+ {[%emt 0:00:05]} Kf6 {[%emt 0:00:30]} 45. Kf3 {[%emt 0:00:18]} Nb6 {[%emt 0:00:30]} 46. Ke4 {[%emt 0:00:43]} Nd7 {[%emt 0:00:30]} 47. Nf3 {[%emt 0:01:47]} Ke6 {[%emt 0:01:30]} 48. Nd4+ {[%emt 0:01:33]} Kf6 {[%emt 0:00:30]} 49. Nf4 {[%emt 0:00:46]} Nc5+ {[%emt 0:01:30]} 50. Kd5 {[%emt 0:00:18]} Na4 {[%emt 0:02:30]} 51. Kd6 {[%emt 0:03:52]} Nb2 {[%emt 0:01:30]} 52. Nde6 {[%emt 0:04:38]} Nxe6 {[%emt 0:00:30]} 53. Nxe6 {[%emt 0:00:30]} Nd3 {[%emt 0:00:30]} 54. f3 {[%emt 0:01:00]} Kg6 {[%emt 0:00:30]} 55. Kd5 {[%emt 0:00:44]} Nf2 {[%emt 0:00:30]} 56. Ke5 {[%emt 0:00:32]} Nh1 {[%emt 0:01:30]} 57. Nf4+ {[%emt 0:02:06]} Kh6 {[%emt 0:00:00]} 58. Ne2 {[%emt 0:00:08]} Kg6 {[%emt 0:00:00]} 59. f4 {[%emt 0:00:04]} Nf2 {[%emt 0:00:30]} 60. f5+ {[%emt 0:00:18]} Kg7 {[%emt 0:00:30]} 61. Nf4 {[%emt 0:01:15]} Ng4+ {[%emt 0:00:30]} 62. Ke6 {[%emt 0:00:00]} Nf6 {[%emt 0:01:30]} 63. Ke7 {[%emt 0:01:01]} Ng8+ {[%emt 0:00:30]} 64. Ke6 {[%emt 0:00:20]} Nf6 {[%emt 0:00:30]} 65. Nd5 {[%emt 0:00:17]} Ne4 {[%emt 0:01:30]} 66. f6+ {[%emt 0:00:09]} Kf8 {[%emt 0:00:00]} 67. Nf4 {[%emt 0:00:30]} 1-0

[Event "World Junior U20 Girls 2018"]
[Site "Gebze"]
[Date "2018.09.12"]
[Round "8"]
[White "Nurgali, Nazerke"]
[Black "Antova, Gabriela"]
[Result "1/2-1/2"]
[ECO "E04"]
[WhiteElo "2080"]
[BlackElo "2292"]
[Annotator "NA"]
[PlyCount "81"]
[EventDate "2018.09.05"]
[EventType "swiss"]
[EventCountry "TUR"]
[SourceTitle "playchess.com"]
[Source "ChessBase"]
[SourceQuality "1"]
[TimeControl "40/5400+30:1800+30"]

1. d4 {[%emt 0:00:30]} d5 {[%emt 0:00:30]} 2. Nf3 {[%emt 0:00:30]} Nf6 {[%emt 0:00:00]} 3. c4 {[%emt 0:00:30]} e6 {[%emt 0:00:00]} 4. g3 {[%emt 0:00:30]} dxc4 {[%emt 0:00:30]} 5. Bg2 {[%emt 0:00:30]} Nc6 {[%emt 0:00:00]} 6. O-O {[%emt 0:02:30]} Rb8 {[%emt 0:00:00]} 7. a4 {[%emt 0:02:30]} b6 {[%emt 0:00:30]} 8. Na3 {[%emt 0:11:30]} Bxa3 {[%emt 0:12:30]} 9. Rxa3 {[%emt 0:01:30]} O-O {[%emt 0:00:30]} 10. Re1 {[%emt 0:06:30]} h6 {[%emt 0:06:30]} 11. e4 {[%emt 0:08:30]} a6 {[%emt 0:05:30]} 12. Rc3 {[%emt 0:03:30]} b5 {[%emt 0:07:30]} 13. b3 {[%emt 0:02:30]} Na5 {[%emt 0:01:30]} 14. bxc4 {[%emt 0:01:30]} b4 {[%emt 0:04:30]} 15. Rd3 {[%emt 0:03:30]} Nxc4 {[%emt 0:05:30]} 16. Qc2 {[%emt 0:01:30]} Nb6 {[%emt 0:01:30]} 17. a5 {[%emt 0:01:30]} Nbd7 {[%emt 0:02:30]} 18. Bf4 {[%emt 0:01:30]} Bb7 {[%emt 0:02:30]} 19. Nd2 {[%emt 0:03:30]} Rc8 {[%emt 0:02:30]} 20. Nb3 {[%emt 0:08:30]} Qe7 {[%emt 0:03:30]} 21. Qc4 {[%emt 0:01:30]} e5 {[%emt 0:11:30]} 22. dxe5 {[%emt 0:03:30]} Nxe5 {[%emt 0:02:30]} 23. Bxe5 {[%emt 0:01:30]} Qxe5 {[%emt 0:00:30]} 24. Qxb4 {[%emt 0:01:30]} c5 {[%emt 0:03:30]} 25. Qc3 {[%emt 0:03:30]} Qe8 {[%emt 0:07:55]} 26. e5 {[%emt 0:08:30]} Bxg2 {[%emt 0:01:49]} 27. exf6 {[%emt 0:00:30]} Qc6 {[%emt 0:00:49]} 28. fxg7 {[%emt 0:00:30]} Rfe8 {[%emt 0:01:20]} 29. Rxe8+ {[%emt 0:03:52]} Rxe8 {[%emt 0:00:06]} 30. f3 {[%emt 0:00:19]} Bh3 {[%emt 0:00:43]} 31. Nd2 {[%emt 0:06:36]} Bf5 {[%emt 0:06:15]} 32. Re3 {[%emt 0:01:26]} Rxe3 {[%emt 0:01:49]} 33. Qxe3 {[%emt 0:00:04]} Qd6 {[%emt 0:05:41]} 34. Qc3 {[%emt 0:02:49]} Bd3 {[%emt 0:01:28]} 35. Kf2 {[%emt 0:03:38]} f6 {[%emt 0:00:32]} 36. Ke3 {[%emt 0:00:42]} Bg6 {[%emt 0:00:18]} 37. Ne4 {[%emt 0:00:29]} Bxe4 {[%emt 0:00:38]} 38. fxe4 {[%emt 0:00:07]} Kxg7 {[%emt 0:00:00]} 39. Qd3 {[%emt 0:01:49]} Qc6 {[%emt 0:01:06]} 40. Qc4 {[%emt 0:00:00]} Qc8 {[%emt 0:00:00]} 41. Qc3 {[%emt 0:08:39]} 1/2-1/2